[Event "2nd Bassano Easter 2022"]
[Site "Bassano del Grappa"]
[Date "2022.04.15"]
[Round "4.10"]
[White "Colbow, Collin"]
[Black "Ciolek, Andreas"]
[Result "1-0"]
[ECO "B23"]
[WhiteElo "2370"]
[BlackElo "2194"]
[Annotator "TA"]
[PlyCount "77"]
[EventDate "2022.04.14"]
[EventType "swiss"]
[EventCountry "ITA"]
[SourceTitle "playchess.com"]
[Source "ChessBase"]
[SourceQuality "1"]
[TimeControl "30/3600+30:1800+30"]

{[%evp 9,77,0,10,0,34,42,40,29,94,79,80,98,154,159,166,150,165,167,228,220,300,299,347,332,333,182,306,283,444,144,147,141,387,279,509,491,429,373,379,381,421,418,392,320,311,262,514,514,498,497,753,592,612,606,5414,5397,29993,29994,29994,29995,29995,29996,29996,29996,29996,29997,29997,29998,29998,29999]} 1. e4 {[%emt 0:00:02]} c5 {[%emt 0:00:40]} 2. Nc3 {[%emt 0:00:05]} a6 {[%emt 0:01:05]} 3. Nge2 {[%emt 0:00:08]} d6 {[%emt 0:00:59]} 4. d4 {[%emt 0:00:04]} cxd4 {[%emt 0:00:06]} 5. Qxd4 {[%emt 0:00:04]} Nc6 {[%emt 0:01:48]} 6. Qd2 {[%emt 0:00:06] [#] B23: Closed Sicilian: Lines without g3.} g6 $146 {[%emt 0:03:39]} ({Predecessor:} 6... Nf6 7. b3 e6 8. Bb2 b5 9. O-O-O Qb6 10. f3 h5 11. Kb1 Bb7 12. Nf4 Be7 {1-0 (75) Tomczak,J (2625)-Saric,I (2650) Germany 2021}) 7. b3 {[%emt 0:00:26]} Bg7 {[%emt 0:00:36]} 8. Bb2 {[%emt 0:00:06] White is slightly better.} Nh6 {[%emt 0:00:18]} (8... b5 $11 {remains equal.}) 9. f3 {[%emt 0:03:28]} f5 {[%emt 0:03:58]} 10. O-O-O {[%emt 0:01:23]} Rf8 {[%emt 0:11:59]} ({Black should try} 10... Qa5) 11. Nd5 $16 {[%emt 0:04:35]} Bxb2+ {[%emt 0:01:00]} 12. Kxb2 {[%emt 0:00:03]} Nf7 {[%emt 0:00:16]} 13. exf5 {[%emt 0:06:24]} gxf5 {[%emt 0:02:42]} (13... Bxf5 {was called for.} 14. g3 h5) 14. Qe3 $40 {[%emt 0:11:28][%cal Rd5f6][%mdl 128] White has strong attack.} e6 {[%emt 0:03:06]} 15. Nef4 {[%emt 0:06:03]} Nce5 {[%emt 0:07:01]} 16. Nb6 {[%emt 0:01:58]} Rb8 {[%emt 0:01:04]} 17. Nc4 {[%emt 0:16:38]} (17. Bc4 $142) 17... Qf6 {[%emt 0:05:14]} (17... Qc7 $142 18. Nb6 (18. Nxd6+ Nxd6 19. Kb1 Ndf7 $15) 18... Qc5 19. Qxc5 dxc5 20. Nxc8 Rxc8 21. Nxe6 Rg8) 18. Kb1 {[%emt 0:00:48]} (18. Nxd6+ Nxd6 19. Kb1 (19. Qd4 Ndf7 $17) 19... Ndf7 $15) 18... d5 {[%emt 0:01:39] [#]} (18... Nc6 {keeps fighting.} 19. Nxd6+ Nxd6) 19. Nxd5 $2 {[%emt 0:06:53]} exd5 $16 {[%emt 0:00:45]} 20. Nxe5 {[%emt 0:01:03] &Bianco is more active.} Be6 $2 {[%emt 0:02:13] This move loses the game for Black.} (20... Nxe5 $2 21. Rxd5 Kf7 22. Rxe5 $18) (20... Qxe5 $16 21. Qxe5+ Nxe5) 21. f4 {[%emt 0:01:31]} Nd6 $2 {[%emt 0:02:33]} (21... Nxe5 {was worth a try.} 22. fxe5 f4) 22. Be2 {[%emt 0:02:18]} Ne4 {[%emt 0:01:15]} 23. Bh5+ {[%emt 0:00:03]} Ke7 {[%emt 0:01:15]} 24. Bf3 {[%emt 0:03:59]} (24. Qb6 Bd7 25. Qd4 Qd6 $18) 24... Rfc8 {[%emt 0:00:59]} 25. Bxe4 {[%emt 0:00:04]} ({Don't do} 25. c4 dxc4 26. bxc4 Ke8 $18) 25... fxe4 {[%emt 0:00:15]} 26. Rd2 {[%emt 0:02:33]} ({Weaker is} 26. c4 dxc4 27. bxc4 Rd8 $18) 26... Rc7 {[%emt 0:00:24]} 27. Rhd1 {[%emt 0:00:23]} ({Not} 27. Qb6 Rbc8 28. Qd4 b5 $18) 27... b5 $2 {[%emt 0:00:24] [#]} (27... Rbc8 28. c4 dxc4) 28. Nc6+ $1 $18 {[%emt 0:01:09][%mdl 512]} Rxc6 {[%emt 0:00:16]} 29. Qa7+ {[%emt 0:00:03][%mdl 64] Skewer, Double Attack} Bd7 {[%emt 0:00:16]} (29... Ke8 $142) 30. Qxb8 {[%emt 0:00:00]} Qc3 {[%emt 0:00:00]} 31. Qg8 {[%emt 0:07:52]} Bf5 {[%emt 0:03:53]} 32. Qxd5 {[%emt 0:01:57] Intending Qd8+ and mate.} e3 {[%emt 0:00:17]} 33. Qd8+ {[%emt 0:04:10] White mates.} Kf7 {[%emt 0:00:40] [#]} 34. Rd7+ $1 {[%emt 0:00:38]} Bxd7 {[%emt 0:00:14]} 35. Rxd7+ {[%emt 0:00:05]} Ke6 {[%emt 0:01:14]} 36. Qe7+ {[%emt 0:00:34]} Kf5 {[%emt 0:00:08]} 37. Rd5+ {[%emt 0:00:08]} Kg6 {[%emt 0:00:48]} 38. Rg5+ {[%emt 0:00:08]} Kh6 {[%emt 0:00:08]} 39. Qf8+ {[%emt 0:00:09] Weighted Error Value: White=0.31/Black=0.66} 1-0

[Event "2nd Bassano Easter 2022"]
[Site "Bassano del Grappa"]
[Date "2022.04.16"]
[Round "5.1"]
[White "Nesterov, Arseniy"]
[Black "Bernadskiy, Vitaliy"]
[Result "1/2-1/2"]
[ECO "E32"]
[WhiteElo "2522"]
[BlackElo "2601"]
[Annotator "TA"]
[PlyCount "28"]
[EventDate "2022.04.14"]
[EventType "swiss"]
[EventCountry "ITA"]
[SourceTitle "playchess.com"]
[Source "ChessBase"]
[SourceQuality "1"]
[TimeControl "30/3600+30:1800+30"]

{[%evp 21,28,11,39,39,51,27,28,35,37]} 1. d4 {[%emt 0:00:03]} Nf6 {[%emt 0:00:08]} 2. c4 {[%emt 0:00:09]} e6 {[%emt 0:00:06]} 3. Nc3 {[%emt 0:00:18]} Bb4 {[%emt 0:00:07]} 4. Qc2 {[%emt 0:00:18]} d6 {[%emt 0:00:48]} 5. Nf3 {[%emt 0:03:16]} O-O {[%emt 0:01:19]} 6. a3 {[%emt 0:04:31]} Bxc3+ {[%emt 0:00:07]} 7. Qxc3 {[%emt 0:00:04]} b6 {[%emt 0:01:54]} 8. e3 {[%emt 0:00:48]} Bb7 {[%emt 0:00:06]} 9. Be2 {[%emt 0:00:15]} Nbd7 {[%emt 0:00:40]} 10. O-O {[%emt 0:00:40]} Ne4 {[%emt 0:01:33]} 11. Qc2 {[%emt 0:00:13]} c5 {[%emt 0:01:17]} 12. b4 {[%emt 0:10:43] E32: Nimzo-Indian: Classical (4 Qc2): 4...0-0.} Qe7 {[%emt 0:01:26]} 13. Bb2 {[%emt 0:03:11]} a5 {[%emt 0:01:22]} 14. bxc5 {[%emt 0:00:47] [#]} dxc5 $146 {[%emt 0:00:44] Black got outplayed after the opening.  Weighted Error Value: White=0.07 (flawless) /Black=0.08 (flawless)} ({Predecessor:} 14... bxc5 15. Rab1 Rfb8 16. Bd3 f5 17. Ba1 d5 18. Ne5 Nxe5 19. dxe5 Rd8 20. Rfd1 a4 {½-½ (42) Michaud,F (2027)-Krejcir,S (2140) ICCF email 2020}) 1/2-1/2

[Event "2nd Bassano Easter 2022"]
[Site "Bassano del Grappa"]
[Date "2022.04.16"]
[Round "5.2"]
[White "Basso, Pier Luigi"]
[Black "Gallego Alcazar, Andres Felipe"]
[Result "1-0"]
[ECO "E60"]
[WhiteElo "2600"]
[BlackElo "2523"]
[Annotator "TA"]
[PlyCount "101"]
[EventDate "2022.04.14"]
[EventType "swiss"]
[EventCountry "ITA"]
[SourceTitle "playchess.com"]
[Source "ChessBase"]
[SourceQuality "1"]
[TimeControl "30/3600+30:1800+30"]

{[%evp 9,101,14,20,13,26,24,9,17,69,26,29,15,52,19,26,21,54,38,32,21,14,0,24,0,0,0,3,-25,-22,-25,0,-73,0,0,0,0,0,0,0,0,0,0,0,-6,0,0,0,0,72,72,71,52,63,70,60,60,112,110,110,110,252,256,250,99,259,239,240,240,241,243,245,245,259,259,265,265,273,272,272,273,273,273,886,275,6536,5652,29976,29975,29976,29978,29979,29980,29981,29980]} 1. d4 {[%emt 0:15:24]} Nf6 {[%emt 0:00:34]} 2. c4 {[%emt 0:00:13]} g6 {[%emt 0:00:12]} 3. h4 {[%emt 0:00:09]} c5 {[%emt 0:02:21]} 4. d5 {[%emt 0:00:07]} b5 {[%emt 0:00:46]} 5. cxb5 {[%emt 0:00:12]} a6 {[%emt 0:01:12]} 6. e3 {[%emt 0:05:01] E60: King's Indian: Unusual lines and Fianchetto Variation without Nc3.} axb5 {[%emt 0:08:10]} 7. Bxb5 {[%emt 0:00:05]} Qa5+ {[%emt 0:00:51]} 8. Nc3 {[%emt 0:00:06] The position is equal.} Ne4 {[%emt 0:00:31]} (8... Ba6 $11 9. Bxa6 Qxa6) 9. Bd2 {[%emt 0:04:33]} Nxd2 {[%emt 0:02:35]} 10. Qxd2 {[%emt 0:00:02]} Bg7 {[%emt 0:00:10]} 11. Nge2 {[%emt 0:01:01] [#]} O-O $146 {[%emt 0:00:32]} ({Predecessor:} 11... Ba6 12. Bxa6 Nxa6 13. O-O O-O 14. Rfd1 d6 15. Rab1 Rfb8 16. g3 Rb7 17. Kg2 Nc7 {0-1 (42) Hasseine,M (2157)-Kirk,E (2447) Playchess.com INT 2021}) 12. h5 {[%emt 0:00:47]} d6 {[%emt 0:05:45]} 13. hxg6 {[%emt 0:00:34]} hxg6 {[%emt 0:00:06]} 14. Rh4 {[%emt 0:00:15]} Ba6 {[%emt 0:01:49]} 15. Bxa6 {[%emt 0:02:29]} Nxa6 {[%emt 0:01:00]} 16. g3 {[%emt 0:03:30]} Rfb8 {[%emt 0:01:03]} 17. Kf1 {[%emt 0:01:09]} Rb4 {[%emt 0:04:35]} 18. Rxb4 {[%emt 0:01:26]} cxb4 {[%emt 0:02:19]} 19. Ne4 {[%emt 0:04:04]} Nc7 {[%emt 0:05:04][%mdl 1024] Black has compensation.} 20. Nf4 {[%emt 0:00:46] [#]} (20. a4 $11) 20... Qb5+ {[%emt 0:09:58]} (20... f5 $1 $17 {[%cal Rf5e4]} 21. Ng5 b3 22. Qxa5 Rxa5) 21. Kg2 {[%emt 0:01:38]} Be5 {[%emt 0:06:09]} 22. Rc1 {[%emt 0:03:28]} Qb7 {[%emt 0:02:15]} 23. Rc4 $36 {[%emt 0:04:46][%mdl 2048] White is more active.} Bxf4 {[%emt 0:02:52]} 24. Rxb4 {[%emt 0:01:09]} Qxd5 {[%emt 0:00:43] [#] aiming for ...Be5.} 25. gxf4 {[%emt 0:00:17] Strongly threatening Qxd5.} Qxa2 {[%emt 0:04:50]} 26. Ng3 {[%emt 0:03:35]} Qd5+ {[%emt 0:02:15]} 27. Qxd5 {[%emt 0:00:12]} Nxd5 $11 {[%emt 0:00:07][%mdl 4096] Endgame KRN-KRN} 28. Rb5 {[%emt 0:00:22]} e6 {[%emt 0:00:53]} (28... Nf6 $11) 29. Ne4 $16 {[%emt 0:01:20]} Ra6 {[%emt 0:01:44]} 30. Rb7 {[%emt 0:00:00]} e5 {[%emt 0:00:00]} 31. fxe5 {[%emt 0:03:08]} dxe5 {[%emt 0:02:56]} 32. Rb5 {[%emt 0:01:59]} Ra4 {[%emt 0:16:04] White now steadily converts the win.} 33. Nd6 {[%emt 0:03:49]} ({Much weaker is} 33. Rxd5 $6 Rxe4 34. Rb5 Kg7 $11) 33... Ne7 {[%emt 0:08:39]} 34. Rxe5 {[%emt 0:00:33]} Ra6 {[%emt 0:01:42]} 35. Rxe7 $18 {[%emt 0:01:02]} Rxd6 {[%emt 0:00:01] KR-KR} 36. b4 $2 {[%emt 0:00:33]} (36. Rb7 $18) 36... Rd2 $2 {[%emt 0:01:40]} (36... Rb6 $16 {keeps fighting.}) 37. b5 {[%emt 0:00:07]} Rb2 {[%emt 0:00:04]} 38. Rb7 {[%emt 0:02:05]} Kg7 {[%emt 0:00:05]} 39. b6 {[%emt 0:00:06]} Kf6 {[%emt 0:00:55]} 40. Kf3 {[%emt 0:01:16]} Ke6 {[%emt 0:00:38]} 41. Rb8 {[%emt 0:00:46]} Kd6 {[%emt 0:01:40]} 42. Kg3 {[%emt 0:00:10]} Ke6 {[%emt 0:01:51]} 43. f3 {[%emt 0:00:06][%cal Bf2f3,Bf3f4][%mdl 32]} Rb4 {[%emt 0:00:59]} 44. e4 {[%emt 0:00:04][%cal Be3e4,Be4e5][%mdl 32]} Rb3 {[%emt 0:00:30]} 45. Kg4 {[%emt 0:00:42]} Rb5 $2 {[%emt 0:01:30]} (45... Kf6 46. b7 Rb4) 46. f4 {[%emt 0:00:20] Hoping for e5.} Rb1 $2 {[%emt 0:01:42]} (46... Kf6 47. e5+ Kg7) 47. Kg5 {[%emt 0:02:15] Threatening mate with b7.} Ke7 {[%emt 0:00:41]} 48. b7 {[%emt 0:01:03] White mates.} Rb6 {[%emt 0:00:44]} 49. e5 {[%emt 0:00:08]} Rb5 {[%emt 0:00:24]} 50. Kh6 {[%emt 0:00:06]} Rb1 {[%emt 0:00:52]} 51. Kg7 {[%emt 0:00:07] Weighted Error Value: White=0.11 (very precise) /Black=0.37} 1-0

[Event "2nd Bassano Easter 2022"]
[Site "Bassano del Grappa"]
[Date "2022.04.16"]
[Round "5.3"]
[White "Heberla, Bartlomiej"]
[Black "Fischer, Daniel"]
[Result "1-0"]
[ECO "E04"]
[WhiteElo "2570"]
[BlackElo "2356"]
[Annotator "TA"]
[PlyCount "49"]
[EventDate "2022.04.14"]
[EventType "swiss"]
[EventCountry "ITA"]
[SourceTitle "playchess.com"]
[Source "ChessBase"]
[SourceQuality "1"]
[TimeControl "30/3600+30:1800+30"]

{[%evp 10,49,0,-5,-6,-16,-4,-15,-15,-10,-7,-25,-30,-29,-20,-17,-14,-14,45,42,53,48,142,141,187,193,175,166,210,225,357,343,539,565,536,445,449,453,826,809,814,782]} 1. Nf3 {[%emt 0:00:05]} d5 {[%emt 0:00:07]} 2. d4 {[%emt 0:00:04]} Nf6 {[%emt 0:00:07]} 3. c4 {[%emt 0:00:03]} e6 {[%emt 0:00:12]} 4. g3 {[%emt 0:00:03]} Bb4+ {[%emt 0:01:35]} 5. Nbd2 {[%emt 0:02:10]} dxc4 {[%emt 0:01:44]} 6. Bg2 {[%emt 0:00:11]} b5 {[%emt 0:01:02] Against Qa4. E04: Open Catalan: 5 Nf3.} 7. O-O {[%emt 0:01:00][%cal Od2c4]} O-O {[%emt 0:00:16]} 8. a4 {[%emt 0:02:30]} c6 {[%emt 0:00:42] The position is equal.} 9. Ne1 {[%emt 0:00:04]} Nd5 {[%emt 0:03:51]} ({Resist} 9... Qxd4 10. Nc2 Qc5 11. axb5 $14) 10. Nc2 {[%emt 0:00:07]} Be7 {[%emt 0:02:11]} 11. e4 {[%emt 0:00:03][%cal Be2e4,Be4e5][%mdl 32]} Nf6 {[%emt 0:01:14] 11...Nb6 is the hot move.} 12. e5 {[%emt 0:00:02]} Nd5 {[%emt 0:00:13]} 13. Ne4 {[%emt 0:00:07] [#]} Bb7 $146 {[%emt 0:02:42]} ({Black should play} 13... b4 $11) ({Predecessor:} 13... b4 14. Qg4 Kh8 15. Ng5 h6 16. Ne4 Nd7 17. Qh5 Qe8 18. Bxh6 f5 19. Qh3 Kg8 {½-½ (40) Morrow,W (2524)-Copar,A (2531) ICCF email 2017}) 14. Qg4 $14 {[%emt 0:03:22]} Kh8 {[%emt 0:03:01]} 15. Bg5 {[%emt 0:02:15]} f5 {[%emt 0:13:27]} (15... b4 $14) 16. exf6 $1 $16 {[%emt 0:00:16][%mdl 64] Discovered Attack} gxf6 {[%emt 0:00:07]} (16... Nxf6 $16 17. Nxf6 (17. Qxe6 Bc8 $16) 17... Bxf6) 17. Bh6 $18 {[%emt 0:00:26][%csl Gh6][%cal Rg4g7]} Rg8 {[%emt 0:00:09] Against Qg7+} 18. Qxe6 {[%emt 0:19:30] Black must now prevent Qf7.} Bc8 {[%emt 0:01:06]} 19. Qf7 $40 {[%emt 0:00:17][%mdl 128] Threatens to win with axb5. Black is in trouble.} Rg6 {[%emt 0:00:40]} (19... Bf8 {was called for.}) 20. Nc3 {[%emt 0:01:03]} Nc7 {[%emt 0:22:51] [#]} (20... Nxc3 {was worth a try.} 21. Rfe1 Nd5) 21. Rfe1 $1 {[%emt 0:00:29] White is clearly winning.} Bd6 {[%emt 0:00:46] [#]} 22. axb5 $1 {[%emt 0:02:00][%cal Ba4b5,Bb5b6,Bb6c7][%mdl 32]} Rxh6 {[%emt 0:03:52]} 23. b6 {[%emt 0:01:58]} Qg8 {[%emt 0:02:23]} (23... axb6 $2 24. Rxa8 Bg4 {[#]} 25. Bxc6 $1 {[%mdl 512]}) (23... Qd7 $142 24. Qxd7 Bxd7) 24. Qxg8+ {[%emt 0:00:41]} Kxg8 {[%emt 0:00:02]} 25. bxc7 {[%emt 0:00:24] Weighted Error Value: White=0.07 (flawless) /Black=0.39} 1-0

[Event "2nd Bassano Easter 2022"]
[Site "Bassano del Grappa"]
[Date "2022.04.16"]
[Round "5.4"]
[White "Baum, Jonasz"]
[Black "Fier, Alexandr"]
[Result "1/2-1/2"]
[ECO "E63"]
[WhiteElo "2287"]
[BlackElo "2583"]
[Annotator "TA"]
[PlyCount "52"]
[EventDate "2022.04.14"]
[EventType "swiss"]
[EventCountry "ITA"]
[SourceTitle "playchess.com"]
[Source "ChessBase"]
[SourceQuality "1"]
[TimeControl "30/3600+30:1800+30"]

{[%evp 14,52,35,18,57,30,41,33,20,16,23,15,14,20,18,9,13,0,0,0,12,0,47,25,23,18,17,0,-6,-6,-7,-9,49,37,37,50,94,95,111,113,104]} 1. d4 {[%emt 0:00:02]} Nf6 {[%emt 0:00:05]} 2. c4 {[%emt 0:00:07]} g6 {[%emt 0:00:03]} 3. g3 {[%emt 0:00:24]} Bg7 {[%emt 0:00:05]} 4. Bg2 {[%emt 0:00:06]} O-O {[%emt 0:00:05]} 5. Nf3 {[%emt 0:00:08]} d6 {[%emt 0:00:04]} 6. O-O {[%emt 0:00:08]} Nc6 {[%emt 0:00:05]} 7. Nc3 {[%emt 1:03:05]} a6 8. Bf4 {[%emt 0:00:00] 8.b3 is the modern continuation.} h6 {[%emt 0:01:13] E63: King's Indian: Fianchetto: Panno Variation with 7...a6.} 9. b3 {[%emt 0:00:00]} (9. e4 {looks sharper.} Nxd4 10. Qxd4 e5 11. Nxe5 Ng4 12. Nxf7 Rxf7 13. Qd2) 9... Rb8 {[%emt 0:00:44]} 10. Rc1 {[%emt 0:00:00]} g5 {[%emt 0:00:13] [#] White is slightly better.} 11. d5 $1 {[%emt 0:00:00]} gxf4 {[%emt 0:03:10]} 12. dxc6 {[%emt 0:00:00]} fxg3 {[%emt 0:00:06]} 13. hxg3 {[%emt 0:03:00]} b6 {[#]} 14. Qc2 $146 {[%emt 0:00:00]} ({Predecessor:} 14. Qd3 e6 15. Rfd1 Qe7 16. e3 Rd8 17. Nd4 Ng4 18. Qe2 h5 19. Bh3 Qg5 20. Nf3 {0-1 (45) Giri,A (2734)-Wang,H (2735) Beijing 2013}) 14... Ng4 {[%emt 0:03:14]} 15. Nd5 {[%emt 0:00:00]} e6 {[%emt 0:00:39]} 16. Nf4 {[%emt 0:00:00]} f5 {[%emt 0:00:09]} 17. Rcd1 {[%emt 0:00:00]} Qe8 {[%emt 0:00:17]} (17... Rf7 $11 {was preferrable.}) 18. Rfe1 {[%emt 0:00:00]} e5 {[%emt 0:13:29]} (18... Qxc6 $2 19. Nd4 Qe8 20. Ndxe6 $1 $18 {[%mdl 512]}) 19. Nd5 {[%emt 0:00:00]} Rf7 {[%emt 0:00:12]} 20. e4 {[%emt 0:00:00]} f4 {[%emt 0:03:12]} ({Much less strong is} 20... Qxc6 21. exf5 Qd7 22. Nh4 $16) 21. gxf4 {[%emt 0:00:00]} exf4 {[%emt 0:00:06]} 22. e5 {[%emt 0:00:00] Strongly threatening exd6.} dxe5 {[%emt 0:04:08]} (22... Bf5 $11 23. Qe2 Nxe5 24. Nxe5 Bxe5) 23. Qg6 $14 {[%emt 0:00:00][%cal Od5c7]} Qe6 {[%emt 0:08:34]} 24. Qh5 {[%emt 0:00:00][%cal Od5c7] Hoping for Nxc7!} e4 {[%emt 0:08:40]} (24... Qxc6 $2 25. Nxe5 Nxe5 26. Rxe5 Bxe5 {[#]} 27. Ne7+ $1 {[%mdl 512]} Rxe7 28. Rd8+ (28. Bxc6 Bg4 $18) 28... Kg7 29. Bxc6 $18) 25. Nd4 {[%emt 0:03:49] Pair of Knights!} Qe5 {[%emt 0:01:14]} 26. Qxe5 {[%emt 0:00:42] Really sharp! 0x0.002037565f53dp-1022s more active pieces. The black rooks are badly placed.} Nxe5 {[%emt 0:00:35] Weighted Error Value: White=0.08 (flawless) /Black=0.13 (very precise)} 1/2-1/2

[Event "2nd Bassano Easter 2022"]
[Site "Bassano del Grappa"]
[Date "2022.04.16"]
[Round "5.5"]
[White "Colbow, Collin"]
[Black "Postny, Evgeny"]
[Result "0-1"]
[ECO "C84"]
[WhiteElo "2370"]
[BlackElo "2567"]
[Annotator "TA"]
[PlyCount "94"]
[EventDate "2022.04.14"]
[EventType "swiss"]
[EventCountry "ITA"]
[SourceTitle "playchess.com"]
[Source "ChessBase"]
[SourceQuality "1"]
[TimeControl "30/3600+30:1800+30"]

{[%evp 18,94,25,10,18,6,22,15,22,8,24,0,13,14,39,22,36,22,18,9,0,0,0,0,-5,2,34,-97,-102,-102,-101,-103,-58,-102,-89,-134,-155,-155,-156,-148,-140,-264,-251,-262,-253,-262,-238,-261,-260,-260,-228,-281,-261,-292,-255,-250,-218,-200,-211,-241,-269,-312,-288,-314,-320,-396,-381,-2697,-2053,-1312,-1235,-29972,-29972,-29967,-29967,-29975,-5659,-5622,-5531]} 1. e4 {[%emt 1:01:00]} e5 {[%emt 1:01:00]} 2. Nf3 {[%emt 0:00:30]} Nc6 {[%emt 0:00:30]} 3. Bb5 {[%emt 0:00:30][%cal Bf1b5,Bb5a4,Ba4b3][%mdl 32]} a6 {[%emt 0:00:30]} 4. Ba4 {[%emt 0:00:30]} Nf6 {[%emt 0:00:30]} 5. O-O {[%emt 0:00:30]} Be7 {[%emt 0:00:30]} 6. d3 {[%emt 0:00:30]} b5 {[%emt 0:00:30]} 7. Bb3 {[%emt 0:00:30]} d6 {[%emt 0:00:30]} 8. a4 {[%emt 0:00:30]} b4 {[%emt 0:00:30]} 9. a5 {[%emt 0:00:30]} O-O {[%emt 0:00:30]} 10. Nbd2 {[%emt 0:00:30]} Be6 {[%emt 0:00:30] C84: Closed Ruy Lopez: Unusual White 6th moves.} 11. Nc4 {[%emt 0:00:30]} h6 {[%emt 0:00:30]} 12. Re1 {[%emt 0:00:30]} Qc8 {[%emt 0:00:30] The position is equal.} 13. h3 {[%emt 0:00:30]} Rd8 {[%emt 0:00:30]} 14. Qe2 {[%emt 0:00:30]} Qb7 {[%emt 0:00:30]} 15. Be3 {[%emt 0:00:30] [#]} Na7 $146 {[%emt 0:00:30]} ({Predecessor:} 15... Bf8 16. Nh2 d5 17. exd5 Nxd5 18. Nf3 f6 19. Ncd2 Bf7 20. Nh4 Qc8 21. Qf3 Nce7 {1-0 (60) Hracek,Z (2613)-Havasi,G (2377) Hungary 2018}) 16. d4 {[%emt 0:00:30]} Nxe4 {[%emt 0:00:30]} 17. dxe5 {[%emt 0:00:30] Strongly threatening Nd4.} d5 {[%emt 0:00:30]} 18. Ncd2 {[%emt 0:00:30]} Nxd2 {[%emt 0:00:30]} 19. Nxd2 {[%emt 0:00:30]} ({Of course not} 19. Bxd2 c5 $15) 19... Nb5 {[%emt 0:00:30]} 20. f4 {[%emt 0:00:30]} c5 {[%emt 0:00:30] White should prevent ...c4.} 21. Qf3 {[%emt 0:00:30]} Qd7 {[%emt 0:00:30]} (21... Qc8 $5 {[%cal Rc5c4]}) 22. g4 {[%emt 0:00:30]} (22. Rad1 $14 {keeps the upper hand.}) 22... c4 $17 {[%emt 0:00:30]} 23. f5 {[%emt 0:00:30] [#] Ba4 is the strong threat.} cxb3 {[%emt 0:00:30]} 24. Nxb3 {[%emt 0:00:30]} Rac8 {[%emt 0:00:30][%cal Od5d4] Hoping for ...d4!} 25. fxe6 {[%emt 0:00:30]} fxe6 {[%emt 0:00:30]} ({But not} 25... Qxe6 $6 26. Bb6 $11) 26. Rf1 {[%emt 0:00:30]} Rf8 {[%emt 0:00:30] Against Qf7+} 27. Qe2 {[%emt 0:00:30]} Qc7 $36 {[%emt 0:00:30][%csl LRc2,LRe5][%mdl 2048] Black is on the roll.} 28. Rxf8+ {[%emt 0:00:30]} Bxf8 {[%emt 0:00:30]} ({Not} 28... Rxf8 29. Bb6 Qc6 30. Rf1 $11) 29. Bb6 {[%emt 0:00:30]} (29. Qh2 $17) 29... Qxc2 $19 {[%emt 0:00:30]} 30. Qxc2 {[%emt 0:00:30]} Rxc2 {[%emt 0:00:30]} 31. Rb1 {[%emt 0:30:30]} Be7 {[%emt 0:30:30]} 32. Bf2 {[%emt 0:00:30]} Kf7 {[%emt 0:00:30]} 33. Kf1 {[%emt 0:00:30]} Ke8 {[%emt 0:00:30]} 34. Nc1 {[%emt 0:00:30]} Kd7 {[%emt 0:00:30]} 35. Ke1 {[%emt 0:00:30]} Rc4 {[%emt 0:00:30]} 36. Nd3 {[%emt 0:00:30]} Nd4 {[%emt 0:00:30]} 37. Bxd4 {[%emt 0:00:30]} Rxd4 {[%emt 0:00:30][%mdl 4096] Endgame KRB-KRN} 38. Ke2 {[%emt 0:00:30]} Re4+ {[%emt 0:00:30]} 39. Kf2 {[%emt 0:00:30]} b3 {[%emt 0:00:30] White must now prevent ...Kc6.} 40. Rc1 {[%emt 0:00:30]} Rc4 {[%emt 0:00:30]} 41. Ke2 {[%emt 0:00:30]} Bg5 {[%emt 0:00:30]} 42. Rxc4 {[%emt 0:00:30] [#]} (42. Ra1 Kc6 43. Kf3) 42... dxc4 {[%emt 0:00:30][%cal Bd5c4,Bc4c3,Bc3c2][%mdl 32] KB-KN} 43. Nc5+ {[%emt 0:00:30]} Kc6 {[%emt 0:00:30]} 44. Nxa6 {[%emt 0:00:30]} c3 {[%emt 0:00:30]} 45. Nb4+ {[%emt 0:00:30]} Kb5 {[%emt 0:00:30]} 46. a6 {[%emt 0:00:30]} Kb6 {[%emt 0:00:30]} (46... cxb2 $142 47. a7 b1=Q 48. a8=Q Qb2+ 49. Kf1 Qc1+ 50. Kg2 Qd2+ 51. Kg3 Qf4+ 52. Kg2 Qd2+ 53. Kf1 Qxb4 54. Kf2 Bh4+ 55. Kf3 Qc3+ 56. Kg2 Qd2+ 57. Kg1 Bf2+ 58. Kh1 Qe1+ 59. Kg2 Qg1+ 60. Kf3 Qh1+ 61. Kxf2 Qxa8 62. h4 b2 63. Kg3 b1=Q 64. Kf2 Qc2+ 65. Kg3 Qag2+ 66. Kf4 Qgf2#) 47. Nd3 {[%emt 0:00:30]} c2 {[%emt 0:00:30] Weighted Error Value: White=0.52/Black=0.27 (precise)} 0-1